bitfinex/quotes_SOLUSD_20250624
["timestamp","ask_amount","ask_price","bid_price","bid_amount"]
[1750794704212,6.70510743,143.1,143.05,95.40510743]
[1750794704694,6.70510743,143.1,143.06,6.70510743]
[1750794704897,0.69886085,143.09,143.06,6.70510743]
[1750794705283,0.69883454,143.1,143.06,6.70510743]
[1750794705889,0.69883454,143.1,143.07,6.70510743]
[1750794706414,14.93200743,143.12,143.08,6.70510743]
[1750794706707,14.93200743,143.12,143.05,95.69014395]
[1750794706708,1.6351,143.12,143.1,6.70510743]
[1750794706885,2.3338174,143.12,143.1,6.70510743]
[1750794707211,2.3338174,143.12,143.09,6.70510743]
[1750794708383,2.3338174,143.12,143.06,18.64964886]
[1750794708693,2.3338174,143.12,143.08,6.70510743]
[1750794710082,9.03892483,143.12,143.08,6.70510743]
[1750794710284,6.70510743,143.1,143.08,88.7]
[1750794711612,6.70510743,143.09,143.08,88.7]
[1750794711919,0.6989097,143.08,143.05,6.70510743]
[1750794712134,7.40401713,143.08,143.05,88.7]
[1750794712290,0.6989097,143.08,143.05,88.7]
[1750794713418,0.6989097,143.08,143.05,6.70510743]
[1750794713601,7.07798125,143.09,143.05,6.70510743]
[1750794713914,0.69882576,143.1,143.07,6.70510743]
[1750794715211,7.55877794,143.11,143.07,6.70510743]
[1750794716601,7.55877794,143.11,143.08,6.70510743]
[1750794716805,6.86,143.11,143.08,6.70510743]
[1750794717414,7.55876469,143.11,143.08,6.70510743]
[1750794717588,6.86,143.11,143.08,6.70510743]
[1750794717785,7.55876339,143.11,143.08,6.70510743]
[1750794717989,7.55876339,143.11,143.06,6.98978765]
[1750794718244,7.55876339,143.11,143.08,6.70510743]
[1750794720226,14.26387082,143.11,143.06,6.70510743]
[1750794720520,6.70510743,143.09,143.05,6.70510743]
[1750794720917,6.70510743,143.08,143.04,244.30510743]
[1750794721119,6.70510743,143.07,143.03,6.70510743]
[1750794721318,0.6990074,143.06,143.03,6.70510743]
[1750794722232,0.6990074,143.06,143.01,95.69222196]
[1750794722634,0.6990074,143.06,143.03,6.70510743]
[1750794723240,6.70510743,143.06,143.02,6.70510743]
[1750794723814,0.69895855,143.07,143.03,6.70510743]
[1750794724009,7.40406598,143.07,143.03,6.70510743]
[1750794724929,7.40406598,143.07,143.01,95.69248509]
[1750794725137,7.40406598,143.07,143.03,6.70510743]
[1750794726018,7.40406598,143.07,143.02,6.70510743]
[1750794726626,7.40406598,143.07,143.03,6.70510743]
[1750794727342,0.69895855,143.07,143.03,6.70510743]
[1750794728130,7.40406598,143.07,143.03,6.70510743]
[1750794728337,6.70510743,143.05,143.03,88.7]
[1750794728556,6.70510743,143.04,142.99,95.87901477]
[1750794728842,6.70510743,143.04,142.99,95.40510743]
[1750794729047,1.6325,143.06,143.02,6.70510743]
[1750794729223,8.33760743,143.06,143.02,6.70510743]
[1750794729416,6.70510743,143.04,142.99,95.40510743]
[1750794729640,6.70510743,143.03,142.99,88.7]
[1750794729846,6.70510743,143.03,142.98,6.70510743]
[1750794730227,6.86,143.04,142.99,6.70510743]
[1750794730428,7.55912888,143.04,143.0,6.70510743]
[1750794730642,7.55912888,143.04,143.01,6.70510743]
[1750794730823,6.86,143.04,143.01,6.70510743]
[1750794731243,6.86,143.04,143.03,6.70510743]
[1750794731957,2.33150797,143.06,143.03,6.70510743]
[1750794732162,2.33150797,143.06,143.04,6.70510743]
[1750794733144,1.6325,143.06,143.04,6.70510743]
[1750794734273,2.33152081,143.06,143.04,6.70510743]
[1750794735352,1.6325,143.06,143.04,6.70510743]
[1750794735858,2.33150845,143.06,143.04,6.70510743]
[1750794736257,1.6325,143.06,143.04,6.70510743]
[1750794736674,36.90533251,143.08,143.04,6.70510743]
[1750794737052,35.20609295,143.09,143.06,6.70510743]
[1750794737376,35.20609295,143.09,143.07,6.70510743]
[1750794737581,35.20609295,143.09,143.07,95.40510743]
[1750794737756,35.20609295,143.09,143.07,88.7]
[1750794737941,6.70510743,143.08,143.07,88.7]
[1750794738141,35.20609295,143.09,143.07,88.7]
[1750794738348,41.91120038,143.09,143.07,88.7]
[1750794740383,35.20609295,143.09,143.07,88.7]
[1750794740559,7.55886951,143.09,143.07,95.40510743]
[1750794740880,7.55886951,143.09,143.06,6.70510743]
[1750794742172,6.70510743,143.08,143.04,88.7]
[1750794742484,6.70510743,143.08,143.03,6.70510743]
[1750794742788,6.70510743,143.06,143.01,6.70510743]
[1750794743850,0.69905627,143.05,143.01,6.70510743]
[1750794744653,0.69905627,143.05,143.02,6.70510743]
[1750794745860,0.69895855,143.07,143.03,6.70510743]
[1750794746247,30.45893005,143.08,143.05,6.70510743]
[1750794746444,29.76,143.08,143.05,6.70510743]
[1750794746673,33.55887914,143.09,143.05,6.70510743]
[1750794746867,6.86,143.09,143.06,6.70510743]
[1750794747065,6.86,143.09,143.08,6.70510743]
[1750794747244,2.26383033,143.12,143.08,6.70510743]
[1750794747448,1.5651,143.12,143.09,6.70510743]
[1750794747661,2.26382172,143.12,143.09,6.70510743]
[1750794747872,2.26382172,143.12,143.08,6.70510743]
[1750794748449,0.69872172,143.12,143.09,6.70510743]
[1750794748650,0.69868435,143.13,143.09,6.70510743]
[1750794749295,6.84,143.14,143.11,6.70510743]
[1750794750381,7.53863142,143.14,143.11,6.70510743]
[1750794751384,14.24373885,143.14,143.09,6.70510743]
[1750794752009,6.70510743,143.12,143.06,26.0]
[1750794752151,6.70510743,143.11,143.07,6.70510743]
[1750794752474,6.70510743,143.12,143.07,6.70510743]
[1750794754182,0.69876318,143.11,143.07,6.70510743]
[1750794755975,0.69876318,143.11,143.08,6.70510743]
[1750794756172,0.69871436,143.12,143.08,6.70510743]
[1750794757178,0.69871436,143.12,143.09,6.70510743]
[1750794757378,0.69871436,143.12,143.1,6.70510743]
[1750794757579,0.69868876,143.13,143.1,6.70510743]
[1750794757767,0.69868876,143.13,143.11,6.70510743]
[1750794759956,6.84,143.14,143.12,6.70510743]
[1750794760274,6.84,143.14,143.13,6.70510743]
[1750794760584,7.5386322,143.14,143.12,6.70510743]
[1750794761295,3.33299994,143.16,143.13,6.70510743]
[1750794761462,3.33299994,143.16,143.15,6.70510743]
[1750794761789,3.33299994,143.16,143.15,95.40510743]
[1750794762360,3.33299994,143.16,143.15,88.7]
[1750794764158,3.33299994,143.16,143.15,95.40510743]
[1750794765596,6.4389,143.22,143.15,95.40510743]
[1750794765597,6.4389,143.22,143.16,85.36700006]
[1750794765801,6.84,143.23,143.21,6.70510743]
[1750794766003,6.84,143.23,143.22,6.70510743]
[1750794766169,7.21595138,143.26,143.22,6.70510743]
[1750794766372,13.92105881,143.26,143.22,6.70510743]
[1750794766701,7.21595138,143.26,143.22,6.70510743]
[1750794768771,0.69805138,143.26,143.22,6.70510743]
[1750794769789,0.69805138,143.26,143.19,26.0]
[1750794770000,0.69805138,143.26,143.22,6.70510743]
[1750794770577,7.40315881,143.26,143.21,6.70510743]
[1750794770786,26.0,143.25,143.2,6.70510743]
[1750794770993,26.0,143.25,143.21,6.70510743]
[1750794771596,26.0,143.25,143.22,6.70510743]
[1750794773187,7.40315494,143.26,143.22,6.70510743]
[1750794773508,0.69804751,143.26,143.22,6.70510743]
[1750794773907,0.69804751,143.26,143.22,95.40510743]
[1750794774418,7.40315494,143.26,143.22,95.40510743]
[1750794774699,7.40315494,143.26,143.22,88.7]
[1750794774902,7.40315494,143.26,143.22,95.40510743]
[1750794775702,0.69804751,143.26,143.22,95.40510743]
[1750794776113,0.69804751,143.26,143.23,6.70510743]
[1750794776289,8.96091066,143.27,143.23,6.70510743]
[1750794776615,2.25580323,143.27,143.23,6.70510743]
[1750794776903,26.0,143.27,143.23,6.70510743]
[1750794777081,0.69798695,143.27,143.24,6.70510743]
[1750794778183,15.21358218,143.3,143.26,6.70510743]
[1750794778380,15.21358218,143.3,143.29,6.70510743]
[1750794779308,15.21358218,143.3,143.24,24.43437193]
[1750794779508,15.21358218,143.3,143.28,6.70510743]
[1750794779885,15.21358218,143.3,143.29,6.70510743]
[1750794780204,15.91142923,143.3,143.24,6.98114658]
[1750794780391,15.91142923,143.3,143.26,6.70510743]
[1750794780590,15.91142923,143.3,143.23,1.5827]
[1750794780591,22.61653666,143.3,143.23,1.5827]
[1750794780796,6.70510743,143.29,143.25,6.70510743]
[1750794780995,22.61653666,143.3,143.25,6.70510743]
[1750794781195,22.61653666,143.3,143.26,6.70510743]
[1750794781699,15.91142923,143.3,143.26,6.70510743]
[1750794783111,15.91142923,143.3,143.27,6.70510743]
[1750794784094,15.21358218,143.3,143.29,6.70510743]
[1750794784692,35.03558731,143.34,143.29,6.70510743]
[1750794784892,35.03558731,143.34,143.31,6.70510743]
[1750794785089,6.82,143.34,143.31,6.70510743]
[1750794785387,6.82,143.34,143.32,6.70510743]
[1750794785603,33.51765342,143.34,143.32,6.70510743]
[1750794785788,33.51765342,143.34,143.31,6.70510743]
[1750794788516,7.51765342,143.34,143.31,6.70510743]
[1750794788815,6.82,143.34,143.32,6.70510743]
[1750794789191,6.82,143.34,143.33,6.70510743]
[1750794790198,6.82,143.34,143.29,25.62850293]
[1750794790400,6.82,143.34,143.32,6.70510743]
[1750794790902,0.69725282,143.42,143.34,1.5756]
[1750794791222,0.69725282,143.42,143.38,6.70510743]
[1750794791423,7.40236025,143.42,143.37,6.70510743]
[1750794792236,7.40236025,143.42,143.38,6.70510743]
[1750794792522,0.69725282,143.42,143.39,6.70510743]
[1750794793026,0.69725282,143.42,143.4,6.70510743]
[1750794793232,26.0,143.43,143.4,6.70510743]
[1750794794316,26.0,143.43,143.39,6.70510743]
[1750794794489,32.70510743,143.43,143.39,6.70510743]
[1750794795015,0.69725282,143.42,143.35,114.32558189]
[1750794795324,0.69725282,143.42,143.39,6.70510743]
[1750794795704,0.69725282,143.42,143.4,6.70510743]
[1750794795904,0.69725282,143.42,143.39,6.70510743]
[1750794796908,0.69725282,143.42,143.37,6.97495207]
[1750794797115,0.69725282,143.42,143.4,6.70510743]
[1750794797605,0.69722315,143.43,143.4,6.70510743]
[1750794797801,0.69722315,143.43,143.41,6.70510743]
[1750794798118,0.697107,143.45,143.42,6.70510743]
[1750794798828,14.53320743,143.47,143.43,6.70510743]
[1750794798829,0.69700982,143.47,143.43,6.70510743]
[1750794798992,0.69700982,143.47,143.44,6.70510743]
[1750794799197,0.69700982,143.47,143.45,6.70510743]
[1750794799817,6.70510743,143.46,143.41,6.70510743]
[1750794799998,6.70510743,143.45,143.4,6.70510743]
[1750794800317,10.02657163,143.43,143.37,32.0287]
[1750794800495,10.02657163,143.43,143.38,10.02657163]
[1750794800695,0.6971556,143.44,143.38,10.02657163]
[1750794800895,10.02657163,143.43,143.38,10.02657163]
[1750794801102,12.46661624,143.44,143.39,10.02657163]
[1750794801298,10.02657163,143.43,143.39,10.02657163]
[1750794801727,28.44004461,143.44,143.39,10.02657163]
[1750794801910,10.02657163,143.43,143.39,10.02657163]
[1750794802110,10.02657163,143.43,143.38,10.02657163]
[1750794802318,0.69725282,143.42,143.38,10.02657163]
[1750794803901,0.69725282,143.42,143.39,10.02657163]
[1750794804101,0.69722595,143.43,143.4,10.02657163]
[1750794805505,0.69722595,143.43,143.41,10.02657163]
[1750794805706,11.76922821,143.46,143.41,10.02657163]
[1750794806011,0.697107,143.45,143.41,10.02657163]
[1750794806211,2.43987451,143.45,143.4,10.02657163]
[1750794806515,12.46644614,143.45,143.4,10.02657163]
[1750794807222,2.43987451,143.45,143.41,10.02657163]
[1750794807420,12.46644614,143.45,143.41,10.02657163]
[1750794807940,0.697107,143.45,143.41,10.02657163]
[1750794808124,10.72367863,143.45,143.41,10.02657163]
[1750794808803,10.72367863,143.45,143.4,10.02657163]
[1750794809238,0.697107,143.45,143.41,10.02657163]
[1750794809445,10.72367863,143.45,143.41,10.02657163]
[1750794810217,0.697107,143.45,143.42,10.02657163]
[1750794810526,0.697107,143.45,143.43,10.02657163]
[1750794811048,26.0,143.48,143.44,10.02657163]
[1750794811932,10.72358145,143.47,143.42,10.02657163]
[1750794812536,10.02657163,143.46,143.4,26.0]
[1750794812847,10.02657163,143.45,143.4,36.02657163]
[1750794813221,10.02657163,143.44,143.4,36.02657163]
[1750794813421,10.02657163,143.45,143.4,36.02657163]
[1750794813634,0.69720421,143.43,143.4,36.02657163]
[1750794814031,0.69720421,143.43,143.36,34.0879]
[1750794814032,10.72377584,143.43,143.36,34.0879]
[1750794814208,10.72377584,143.43,143.38,10.02657163]
[1750794814831,12.46678636,143.43,143.38,10.02657163]
[1750794815038,12.46678636,143.43,143.39,10.02657163]
[1750794815724,12.46678636,143.43,143.36,41.06328792]
[1750794815913,12.46678636,143.43,143.39,10.02657163]
[1750794816726,10.02657163,143.4,143.36,27.5768]
[1750794817036,36.38,143.42,143.32,10.02657163]
[1750794817212,10.02657163,143.37,143.33,10.02657163]
[1750794817834,10.72410922,143.37,143.33,10.02657163]
[1750794818713,0.69753759,143.37,143.33,10.02657163]
[1750794819637,0.69753759,143.37,143.34,10.02657163]
[1750794819937,10.72403459,143.38,143.34,10.02657163]
[1750794820122,0.69746296,143.38,143.34,10.02657163]
[1750794820532,0.69746296,143.38,143.35,10.02657163]
[1750794821531,62.38,143.42,143.34,6.97639369]
[1750794821532,10.72387307,143.41,143.34,6.97639369]
[1750794821735,10.02657163,143.4,143.35,10.02657163]
[1750794822134,10.72397033,143.39,143.35,10.02657163]
[1750794822314,7.38602093,143.39,143.35,6.68862223]
[1750794822640,7.38602093,143.39,143.33,6.9766733]
[1750794823218,2.44066933,143.41,143.36,6.68862223]
[1750794823516,0.69730144,143.41,143.37,6.68862223]
[1750794823716,7.38592367,143.41,143.37,6.68862223]
[1750794823940,7.38592367,143.41,143.36,6.68862223]
[1750794824437,7.38592367,143.41,143.37,6.68862223]
[1750794825737,7.38592367,143.41,143.36,6.68862223]
[1750794825923,0.69730144,143.41,143.36,6.68862223]
[1750794826124,7.38592367,143.41,143.36,6.68862223]
[1750794826332,7.38592367,143.41,143.37,6.68862223]
[1750794828027,0.69730144,143.41,143.37,6.68862223]
[1750794828729,0.69730144,143.41,143.38,6.68862223]
[1750794829241,0.69730144,143.41,143.37,6.68862223]
[1750794830344,7.4772688,143.42,143.38,6.68862223]
[1750794830648,7.4772688,143.42,143.39,6.68862223]
[1750794830945,6.78,143.42,143.39,6.68862223]
[1750794832325,6.78,143.42,143.38,6.97420527]
[1750794832326,6.78,143.42,143.4,6.68862223]
[1750794832523,6.78,143.42,143.39,6.68862223]
[1750794834033,0.69722658,143.43,143.41,6.68862223]
[1750794834238,0.69717624,143.44,143.41,6.68862223]
[1750794835241,6.2516,143.46,143.41,6.97280354]
[1750794835553,13.44862223,143.47,143.43,6.68862223]
[1750794836232,0.69707928,143.46,143.43,6.68862223]
[1750794837323,7.38570151,143.46,143.38,18.64964886]
[1750794837518,0.69707928,143.46,143.39,6.68862223]
[1750794837740,0.69707928,143.46,143.4,6.68862223]
[1750794837741,6.68862223,143.44,143.4,6.68862223]
[1750794838653,0.69720421,143.43,143.4,6.68862223]
[1750794838822,6.68862223,143.42,143.38,6.68862223]
[1750794839024,0.69720421,143.43,143.38,6.68862223]
[1750794839025,2.20690421,143.43,143.38,6.68862223]
[1750794839327,6.68862223,143.42,143.38,6.68862223]
[1750794840546,8.89552644,143.43,143.38,6.68862223]
[1750794841351,6.68862223,143.42,143.37,6.68862223]
[1750794842650,1.6364,143.45,143.41,6.68862223]
[1750794842962,8.32502223,143.45,143.41,95.38862223]
[1750794843451,8.32502223,143.45,143.41,88.7]
[1750794843652,6.68862223,143.44,143.41,88.7]
[1750794844027,1.6364,143.45,143.41,88.7]
[1750794844231,6.68862223,143.44,143.41,88.7]
[1750794844961,0.69720421,143.43,143.41,88.7]
[1750794846949,9.02216985,143.45,143.41,95.38862223]
[1750794847152,1.6364,143.45,143.41,95.38862223]
[1750794847334,13.3940978,143.46,143.42,6.68862223]
[1750794847537,13.3940978,143.46,143.42,88.7]
[1750794848829,6.68862223,143.44,143.42,88.7]
[1750794849147,7.38582644,143.43,143.42,88.7]
[1750794850260,0.69720421,143.43,143.42,88.7]
[1750794850748,0.69720421,143.43,143.39,95.38862223]
[1750794852848,7.75104603,143.46,143.39,95.38862223]
[1750794852849,0.697107,143.45,143.39,95.38862223]
[1750794853152,7.38572923,143.45,143.4,6.68862223]
[1750794853951,0.697107,143.45,143.39,95.38862223]
[1750794854155,6.68862223,143.43,143.39,88.7]
[1750794854954,0.69725282,143.42,143.39,88.7]
[1750794856155,0.69725282,143.42,143.39,95.38862223]
[1750794858359,0.69725282,143.42,143.4,6.68862223]
[1750794858955,0.69725282,143.42,143.39,95.38862223]
[1750794859457,0.69720421,143.43,143.39,95.38862223]
[1750794859657,12.69702223,143.46,143.41,6.68862223]
[1750794859955,6.68862223,143.45,143.41,88.7]
[1750794861167,7.38572923,143.45,143.41,88.7]
[1750794861972,0.697107,143.45,143.41,88.7]
[1750794862267,7.38572923,143.45,143.41,95.38862223]
[1750794863380,7.38572923,143.45,143.41,88.7]
[1750794863559,7.38572923,143.45,143.41,95.38862223]
[1750794863763,7.38572923,143.45,143.41,88.7]
[1750794864970,6.68862223,143.43,143.41,88.7]
[1750794865155,6.68862223,143.43,143.38,95.38862223]
[1750794866064,0.69725282,143.42,143.38,95.38862223]
[1750794866268,0.69725282,143.42,143.39,6.68862223]
[1750794867164,0.6971556,143.44,143.39,6.68862223]
[1750794867345,0.6971556,143.44,143.41,6.68862223]
[1750794867669,7.38577783,143.44,143.39,95.38862223]
[1750794868462,0.6971556,143.44,143.39,95.38862223]
[1750794868662,7.38577783,143.44,143.39,95.38862223]
[1750794868853,0.6971556,143.44,143.39,95.38862223]
[1750794869356,7.38577783,143.44,143.39,95.38862223]
[1750794869968,7.38577783,143.44,143.39,102.36258096]
[1750794870268,6.68862223,143.41,143.36,88.7]
[1750794870443,6.68862223,143.41,143.33,150.4032]
[1750794870444,6.68862223,143.37,143.32,13.66573191]
[1750794871268,6.68862223,143.37,143.32,6.68862223]
[1750794871449,6.68862223,143.36,143.32,6.68862223]
[1750794871649,6.68862223,143.36,143.31,32.97767009]
[1750794871849,6.68862223,143.36,143.32,6.68862223]
[1750794872658,6.68862223,143.37,143.32,6.68862223]
[1750794873652,0.69754464,143.36,143.32,6.68862223]
[1750794873847,0.69754464,143.36,143.31,32.97767009]
[1750794873848,0.69754464,143.36,143.31,6.68862223]
[1750794874054,6.68862223,143.34,143.29,6.68862223]
[1750794874478,6.68862223,143.33,143.28,13.66796338]
[1750794874853,6.68862223,143.34,143.29,6.68862223]
[1750794875448,0.69769064,143.33,143.29,6.68862223]
[1750794876278,0.69769064,143.33,143.28,6.97934115]
[1750794876458,0.69769064,143.33,143.29,6.68862223]
[1750794878165,7.38627877,143.34,143.29,13.66732053]
[1750794878374,0.69765654,143.34,143.3,6.68862223]
[1750794878767,0.69765654,143.34,143.31,6.68862223]
[1750794878967,7.34671041,143.35,143.31,6.68862223]
[1750794879170,8.91798641,143.36,143.31,6.68862223]
[1750794880190,6.68862223,143.35,143.31,6.68862223]
[1750794880371,6.68862223,143.32,143.25,6.68862223]
[1750794880575,25.28764886,143.34,143.24,88.7]
[1750794880576,6.68862223,143.29,143.24,13.66971702]
[1750794880974,6.68862223,143.28,143.24,6.68862223]
[1750794881585,6.68862223,143.27,143.21,90.2281]
[1750794881787,6.68862223,143.26,143.21,6.68862223]
[1750794882164,7.38666917,143.26,143.21,13.67118435]
[1750794882887,7.38666917,143.26,143.2,138.89365183]
[1750794882888,6.68862223,143.25,143.19,6.98372791]
[1750794883188,6.68862223,143.25,143.18,112.35342563]
[1750794883189,6.68862223,143.23,143.18,102.37263735]
[1750794883488,6.68862223,143.24,143.19,6.68862223]
[1750794883870,7.43804694,143.26,143.2,6.68862223]
[1750794884075,6.74,143.26,143.22,6.68862223]
[1750794884289,14.12666652,143.26,143.22,6.68862223]
[1750794884605,6.74,143.26,143.23,6.68862223]
[1750794884890,6.74,143.26,143.22,6.68862223]
[1750794884891,13.42862223,143.26,143.22,6.68862223]
[1750794885085,14.12666165,143.26,143.21,6.68862223]
[1750794885276,13.42862223,143.26,143.22,6.68862223]
[1750794885495,6.74,143.26,143.22,6.68862223]
[1750794885791,14.12666113,143.26,143.2,95.68324022]
[1750794886085,6.68862223,143.25,143.21,6.68862223]
[1750794886291,7.38673291,143.25,143.21,32.68862223]
[1750794887067,7.38673291,143.25,143.21,6.68862223]
[1750794887481,7.38673291,143.25,143.2,6.68862223]
[1750794888297,7.38673291,143.25,143.2,13.67179764]
[1750794888803,7.38673291,143.25,143.2,6.68862223]
[1750794889303,7.38673291,143.25,143.2,95.38862223]
[1750794890509,14.12667538,143.26,143.22,6.68862223]
[1750794890676,14.12667538,143.26,143.21,6.68862223]
[1750794891403,14.12667538,143.26,143.21,13.67128123]
[1750794892610,14.12667538,143.26,143.21,6.68862223]
[1750794894375,14.12667538,143.26,143.22,6.68862223]
[1750794895109,14.12667538,143.26,143.22,88.7]
[1750794895687,6.68862223,143.25,143.22,88.7]
[1750794895993,14.12667538,143.26,143.22,88.7]
[1750794897805,7.43805315,143.26,143.22,95.38862223]
[1750794898512,7.43805315,143.26,143.22,88.7]
[1750794898674,14.12667538,143.26,143.22,95.38862223]
[1750794898871,6.68862223,143.25,143.22,88.7]
[1750794900120,7.38675124,143.24,143.19,6.68862223]
[1750794900329,7.38675124,143.24,143.13,88.7]
[1750794900330,6.68862223,143.2,143.13,88.7]
[1750794900625,6.68862223,143.17,143.12,6.68862223]
[1750794900912,6.68862223,143.19,143.14,6.68862223]
[1750794901199,6.72,143.21,143.16,6.68862223]
[1750794901376,6.68862223,143.19,143.14,6.68862223]
[1750794901578,6.68862223,143.16,143.11,6.68862223]
[1750794901794,6.68862223,143.17,143.13,6.68862223]
[1750794901981,7.38711941,143.17,143.13,6.68862223]
[1750794902183,6.68862223,143.18,143.13,6.68862223]
[1750794902402,6.68862223,143.18,143.13,13.67521829]
[1750794902596,6.72,143.21,143.16,6.68862223]
[1750794902794,14.10690194,143.21,143.16,6.68862223]
[1750794902978,13.40862223,143.21,143.17,6.68862223]
[1750794903186,6.72,143.21,143.18,6.68862223]
[1750794903497,6.72,143.21,143.13,43.10288364]
[1750794903694,6.72,143.21,143.18,6.68862223]
[1750794903894,6.72,143.21,143.19,6.68862223]
[1750794904094,6.72,143.21,143.18,6.68862223]
[1750794904308,6.72,143.21,143.17,6.98450079]
[1750794904507,6.72,143.21,143.18,6.68862223]
[1750794904896,6.72,143.21,143.19,6.68862223]
[1750794905204,6.72,143.21,143.17,6.98450079]
[1750794905205,6.72,143.21,143.2,6.68862223]
[1750794905383,6.0891,143.23,143.2,6.68862223]
[1750794905584,39.40862223,143.26,143.22,6.68862223]
[1750794905800,13.40862223,143.26,143.22,6.68862223]
[1750794906185,7.41804712,143.26,143.22,6.68862223]
[1750794906583,7.41804712,143.26,143.21,6.98271727]
[1750794906584,7.41804712,143.26,143.23,6.68862223]
[1750794907090,6.72,143.26,143.24,6.68862223]
[1750794907310,6.72,143.26,143.22,6.98216097]
[1750794907618,6.72,143.26,143.24,6.68862223]
[1750794908194,6.72,143.26,143.23,6.68862223]
[1750794909421,6.72,143.26,143.24,6.68862223]
[1750794910500,7.41803191,143.26,143.24,6.68862223]
[1750794910823,6.72,143.26,143.24,6.68862223]
[1750794912227,12.02319452,143.27,143.24,6.68862223]
[1750794912416,11.32519287,143.27,143.24,6.68862223]
[1750794912725,12.02318085,143.27,143.24,6.68862223]
[1750794913218,9.71089287,143.27,143.25,6.68862223]
[1750794913597,10.40887649,143.27,143.24,6.68862223]
[1750794914031,10.40887649,143.27,143.21,25.63240146]
[1750794914326,10.40887649,143.27,143.21,6.9827526]
[1750794914327,17.09749872,143.27,143.21,6.9827526]
[1750794914527,17.09749872,143.27,143.22,6.68862223]
[1750794914831,17.09749872,143.27,143.23,6.68862223]
[1750794915190,10.40887649,143.27,143.23,6.68862223]
[1750794916511,10.40887649,143.27,143.2,114.7]
[1750794916512,10.40887649,143.27,143.24,6.68862223]
[1750794917700,9.71089287,143.27,143.25,6.68862223]
[1750794918141,9.71089287,143.27,143.26,6.68862223]
[1750794918622,9.71089287,143.27,143.25,95.38862223]
[1750794918999,9.71089287,143.27,143.26,6.68862223]
[1750794919725,9.71089287,143.27,143.26,13.66893774]
[1750794920303,9.71089287,143.27,143.26,6.68862223]
[1750794921111,9.71089287,143.27,143.26,13.66893774]
[1750794921315,9.71089287,143.27,143.26,6.68862223]
[1750794921632,9.71089287,143.27,143.26,13.66893774]
[1750794922033,9.71089287,143.27,143.26,102.36893774]
[1750794922818,2.22578844,143.31,143.26,95.68031551]
[1750794923019,2.22578844,143.31,143.28,6.68862223]
[1750794924815,2.22578844,143.31,143.27,6.68862223]
[1750794925425,8.91441067,143.31,143.26,88.7]
[1750794925712,8.91441067,143.31,143.26,95.38862223]
[1750794926341,2.22578844,143.31,143.27,6.68862223]
[1750794926838,2.22578844,143.31,143.28,6.68862223]
[1750794927714,2.22578844,143.31,143.26,95.68024171]
[1750794927925,2.22578844,143.31,143.28,6.68862223]
[1750794928328,0.69778844,143.31,143.28,6.68862223]
[1750794928531,0.69776027,143.32,143.29,6.68862223]
[1750794928833,8.3265,143.35,143.31,6.68862223]
[1750794929656,6.72,143.35,143.31,6.68862223]
[1750794929820,6.72,143.35,143.28,113.03405514]
[1750794929821,6.72,143.35,143.32,6.68862223]
[1750794930134,6.72,143.35,143.29,0.6976051]
[1750794930341,7.41761658,143.35,143.32,6.68862223]
[1750794931628,7.41761658,143.35,143.3,6.68862223]
[1750794931629,14.10623881,143.35,143.3,6.68862223]
[1750794932444,7.41761658,143.35,143.31,6.68862223]
[1750794933048,7.41761658,143.35,143.32,6.68862223]
[1750794933245,6.72,143.35,143.32,6.68862223]
[1750794933951,12.09952919,143.39,143.34,6.68862223]
[1750794934119,18.78815142,143.39,143.35,6.68862223]
[1750794934644,0.69747061,143.38,143.35,6.68862223]
[1750794934844,7.38609284,143.38,143.33,6.68862223]
[1750794935014,6.68862223,143.37,143.31,6.97774428]
[1750794935345,6.68862223,143.37,143.32,6.68862223]
[1750794935519,7.38609284,143.38,143.33,6.68862223]
[1750794936223,7.38609284,143.38,143.31,95.67774428]
[1750794936224,0.69747061,143.38,143.35,6.68862223]
[1750794937429,6.68862223,143.37,143.32,88.7]
[1750794937746,6.68862223,143.37,143.32,95.38862223]
[1750794938050,6.68862223,143.36,143.32,88.7]
[1750794938343,6.68862223,143.36,143.3,6.68862223]
[1750794938344,6.68862223,143.35,143.3,6.68862223]
[1750794938522,6.68862223,143.34,143.27,34.56022792]
[1750794938720,6.68862223,143.34,143.29,6.68862223]
[1750794939344,6.68862223,143.33,143.29,6.68862223]
[1750794940038,2.44163453,143.35,143.29,6.68862223]
[1750794940039,6.68862223,143.34,143.29,6.68862223]
[1750794940241,6.68862223,143.34,143.27,26.0]
[1750794940242,6.68862223,143.34,143.3,6.68862223]
[1750794940442,6.68862223,143.34,143.29,6.68862223]
[1750794940647,6.68862223,143.33,143.28,6.68862223]
[1750794941353,6.68862223,143.32,143.28,6.68862223]
[1750794941649,7.38639526,143.32,143.28,6.68862223]
[1750794942358,0.69777303,143.32,143.26,6.68862223]
[1750794942532,6.68862223,143.31,143.26,6.68862223]
[1750794942727,6.68862223,143.31,143.27,6.68862223]
[1750794943629,0.6978367,143.3,143.27,6.68862223]